bitfinex/quotes_ETHUSD_20241212
["timestamp","ask_amount","ask_price","bid_price","bid_amount"]
[1734026377958,0.8156,3957.7,3956.6,1.04915361]
[1734026378183,0.8156,3957.7,3956.7,0.18657051]
[1734026378355,0.8156,3957.7,3956.8,0.18657051]
[1734026378554,0.8156,3957.7,3956.1,1.56721244]
[1734026378555,0.8156,3957.7,3956.9,0.18657051]
[1734026378751,0.8156,3957.7,3957.0,0.18657051]
[1734026378983,0.8156,3957.7,3956.1,0.7637]
[1734026379193,0.8156,3957.7,3956.0,1.04480829]
[1734026379194,0.8004,3958.8,3956.6,0.7637]
[1734026379373,0.8004,3958.7,3956.9,1.04480829]
[1734026379589,0.8004,3958.7,3957.0,2.66167021]
[1734026379887,0.8004,3958.7,3957.1,1.04955884]
[1734026380089,0.8004,3958.7,3957.2,0.50450295]
[1734026380260,0.8004,3958.7,3957.3,0.18669194]
[1734026380449,0.8004,3958.7,3957.2,0.31781101]
[1734026380450,0.8004,3958.7,3957.4,0.18669194]
[1734026380653,0.8004,3958.7,3957.5,0.18669194]
[1734026380895,0.8004,3958.7,3957.6,0.18669194]
[1734026381045,0.8004,3958.7,3957.7,0.18669194]
[1734026381247,0.8004,3958.7,3957.8,0.18669194]
[1734026381478,0.8004,3958.7,3957.9,0.18669194]
[1734026381681,0.8004,3958.7,3958.0,0.18669194]
[1734026381884,0.8004,3958.7,3958.1,0.18669194]
[1734026382087,0.8004,3958.7,3957.8,0.31781101]
[1734026382088,0.8004,3958.7,3958.2,0.18669194]
[1734026382259,0.8004,3958.7,3958.3,0.18669194]
[1734026382460,0.8004,3958.7,3958.4,0.18669194]
[1734026382701,0.8004,3958.7,3957.3,1.86530829]
[1734026382702,0.8004,3958.7,3957.3,0.8205]
[1734026383009,0.8004,3958.7,3957.4,2.34392591]
[1734026383205,0.8004,3958.7,3957.5,1.04968648]
[1734026383527,0.8004,3958.7,3957.3,1.13831101]
[1734026383528,0.8004,3958.7,3957.6,0.18686019]
[1734026383674,0.8004,3958.7,3957.7,0.18686019]
[1734026384003,0.8004,3958.7,3957.8,0.18686019]
[1734026384161,0.8004,3958.7,3957.9,0.18686019]
[1734026384370,0.8004,3958.7,3958.0,0.18686019]
[1734026384573,0.8004,3958.7,3958.1,0.18686019]
[1734026384781,0.8004,3958.7,3958.2,0.18686019]
[1734026385072,0.8004,3958.7,3957.0,1.81110829]
[1734026385267,0.8004,3958.7,3957.1,2.34496861]
[1734026385581,0.8004,3958.7,3957.2,2.47589441]
[1734026385781,0.8004,3958.7,3957.3,2.34495836]
[1734026385985,0.8004,3958.7,3957.4,1.05010832]
[1734026386168,0.8004,3958.7,3957.5,0.18687496]
[1734026386371,0.8004,3958.7,3957.6,0.18687496]
[1734026386567,0.8004,3958.7,3957.7,0.18687496]
[1734026386886,0.8004,3958.7,3957.8,0.18687496]
[1734026387213,0.8004,3958.7,3957.9,0.18687496]
[1734026387369,0.8004,3958.7,3958.0,0.18687496]
[1734026387569,0.8004,3958.7,3957.2,1.3626193]
[1734026387570,0.8004,3958.7,3958.1,0.18687496]
[1734026387801,0.8004,3958.7,3958.2,0.18687496]
[1734026388135,0.8004,3958.7,3957.2,1.3626193]
[1734026388422,0.8004,3958.7,3957.3,2.3458399]
[1734026388588,0.8004,3958.7,3957.4,2.3458399]
[1734026388920,0.8004,3958.7,3957.5,1.05041412]
[1734026389218,0.8147,3958.6,3957.6,0.18679679]
[1734026389419,0.64384566,3958.5,3956.7,1.04480829]
[1734026389621,0.64384566,3958.5,3956.5,1.56721244]
[1734026389622,0.8147,3958.4,3956.8,2.34735439]
[1734026389827,0.8147,3958.4,3956.9,0.18690096]
[1734026389984,0.8147,3958.4,3957.0,0.18690096]
[1734026390178,0.8147,3958.4,3956.3,2.90616092]
[1734026390179,0.8147,3958.4,3957.1,0.18690096]
[1734026390416,0.8147,3958.2,3957.2,0.18690096]
[1734026390585,0.8147,3958.2,3957.3,0.18690096]
[1734026390779,0.8147,3958.2,3957.4,0.18690096]
[1734026390979,0.8147,3958.2,3957.5,0.18690096]
[1734026391193,0.8147,3958.2,3957.6,0.18690096]
[1734026391474,0.8147,3958.2,3956.7,1.04480829]
[1734026391713,0.8147,3958.2,3956.8,0.18696986]
[1734026391920,0.8147,3958.2,3956.7,1.04480829]
[1734026391921,0.8147,3958.2,3956.9,2.16195265]
[1734026392128,0.8147,3958.2,3957.0,0.18697853]
[1734026392285,0.8147,3958.2,3957.1,0.18697853]
[1734026392621,0.8147,3958.2,3957.2,0.18697853]
[1734026392824,0.8147,3958.2,3957.3,0.18697853]
[1734026392982,0.8147,3958.2,3957.4,0.18697853]
[1734026393186,0.8147,3958.2,3956.6,1.04480829]
[1734026393412,0.8147,3958.0,3956.7,0.18704398]
[1734026393620,0.8147,3958.0,3956.8,2.35028928]
[1734026393926,0.8147,3958.0,3956.9,2.35028928]
[1734026394076,0.8147,3958.0,3957.0,2.35028928]
[1734026394280,0.8147,3958.6,3957.3,1.04480829]
[1734026394495,0.8147,3958.6,3957.4,2.35056475]
[1734026394735,0.8147,3958.6,3957.5,2.35056475]
[1734026395033,0.8147,3958.6,3957.6,2.35056475]
[1734026395184,0.8147,3958.6,3957.7,1.05247765]
[1734026395382,0.8147,3958.6,3957.8,0.18704398]
[1734026395610,0.8147,3958.6,3957.9,0.18704398]
[1734026395814,0.8147,3958.6,3958.0,0.18704398]
[1734026395991,0.8147,3958.6,3958.1,0.18704398]
[1734026396196,0.8147,3958.6,3958.2,0.18704398]
[1734026396402,0.8147,3958.6,3958.3,0.18704398]
[1734026396708,0.8147,3958.6,3957.5,1.04480829]
[1734026396925,0.8147,3958.6,3957.6,0.18693273]
[1734026397086,0.8147,3958.6,3957.7,2.35008105]
[1734026397287,0.8147,3958.6,3957.8,1.05219206]
[1734026397487,0.8147,3958.6,3957.9,0.18693273]
[1734026397736,0.8147,3958.6,3958.0,0.18693273]
[1734026397930,0.8147,3958.6,3958.1,0.18693273]
[1734026398145,0.8147,3958.6,3958.2,0.18693273]
[1734026398289,0.8147,3958.6,3958.2,0.18699007]
[1734026398492,0.8147,3958.6,3957.5,1.04480829]
[1734026398694,0.8147,3958.6,3957.6,3.39614256]
[1734026399015,0.8147,3958.6,3957.7,2.35133427]
[1734026399199,0.8147,3958.6,3957.8,1.05273933]
[1734026399414,0.8147,3958.6,3957.9,0.18700937]
[1734026399621,0.8147,3958.6,3958.0,0.18700937]
[1734026399790,0.8147,3958.6,3957.4,1.04480829]
[1734026399791,0.8147,3958.6,3958.1,0.18700937]
[1734026399993,0.8147,3958.6,3957.4,1.04480829]
[1734026400187,0.8147,3958.6,3957.5,0.18708388]
[1734026400455,0.8147,3958.6,3957.6,0.18708388]
[1734026400732,0.828,3958.4,3957.7,0.18708388]
[1734026400895,0.828,3958.4,3957.1,0.18708388]
[1734026401097,0.828,3958.4,3957.2,1.05375877]
[1734026401318,0.828,3958.4,3957.3,0.18724245]
[1734026401519,0.828,3958.4,3957.0,1.04480829]
[1734026401520,0.828,3958.4,3957.4,0.18724245]
[1734026401723,0.828,3958.4,3957.0,1.04480829]
[1734026401724,0.828,3958.2,3957.5,0.18724245]
[1734026402026,0.828,3958.2,3957.6,0.18724245]
[1734026402232,0.828,3958.2,3957.0,1.04480829]
[1734026402233,0.828,3958.2,3957.7,0.18724245]
[1734026402429,0.828,3958.2,3957.0,1.04480829]
[1734026402640,0.828,3958.2,3957.1,0.18720863]
[1734026402809,0.828,3958.2,3957.2,1.05365972]
[1734026402994,0.828,3958.2,3957.3,0.18720863]
[1734026403190,0.828,3958.2,3957.4,0.18720863]
[1734026403549,0.828,3958.2,3957.5,0.1871559]
[1734026403851,0.828,3958.2,3957.6,0.1871559]
[1734026404008,0.828,3958.2,3957.7,0.1871559]
[1734026404209,0.828,3958.2,3957.0,1.04480829]
[1734026404443,0.828,3958.2,3957.1,0.18717328]
[1734026404594,0.828,3958.2,3957.2,2.35275256]
[1734026404795,0.828,3958.2,3957.3,1.05340499]
[1734026405033,0.828,3958.2,3957.4,0.18717328]
[1734026405236,0.828,3958.2,3957.5,0.18717328]
[1734026405394,0.828,3958.2,3956.9,1.56721244]
[1734026405395,0.828,3958.2,3957.6,0.18717328]
[1734026405595,0.828,3958.2,3957.7,0.18717328]
[1734026405795,0.7911,3958.8,3957.8,0.18717328]
[1734026405992,0.7911,3958.8,3957.9,2.35217485]
[1734026406197,0.7911,3958.8,3958.0,2.35217485]
[1734026406434,0.7911,3958.8,3958.1,2.35217485]
[1734026406636,0.7911,3958.8,3958.2,1.05319665]
[1734026406843,0.7911,3958.8,3958.3,0.18717328]
[1734026407027,0.7911,3958.8,3957.9,1.04480829]
[1734026407233,0.7911,3958.8,3958.0,0.18706991]
[1734026407546,0.7911,3958.8,3958.1,2.35131614]
[1734026407849,0.7911,3958.8,3958.2,1.0527684]
[1734026408000,0.7911,3958.8,3958.3,1.0527684]
[1734026408200,0.7911,3958.8,3958.0,1.04480829]
[1734026408201,0.7911,3958.8,3958.4,0.18706991]
[1734026408401,0.7911,3958.8,3958.5,0.18706991]
[1734026408604,0.7911,3958.8,3958.6,0.18706991]
[1734026408834,0.7911,3958.8,3958.7,0.18706991]
[1734026409340,0.7911,3958.8,3958.1,1.04480829]
[1734026409559,0.7911,3958.8,3958.7,0.18700321]
[1734026409712,0.7911,3958.8,3958.7,0.3740015]
[1734026410520,0.7617,3959.1,3958.7,0.3740015]
[1734026410755,0.7617,3959.1,3958.8,0.18699829]
[1734026410911,0.7617,3959.1,3958.7,0.18700321]
[1734026411107,0.7617,3959.1,3958.8,0.186997]
[1734026411414,0.7617,3959.1,3958.7,0.18700321]
[1734026411615,0.7617,3959.1,3958.8,0.18697084]
[1734026411819,0.7617,3959.1,3958.7,0.18700321]
[1734026412823,0.7617,3959.1,3958.0,1.3626193]
[1734026413019,0.7617,3959.1,3958.1,0.18695099]
[1734026413221,0.7617,3959.1,3958.2,2.3506884]
[1734026413446,0.7617,3959.1,3958.3,1.05244826]
[1734026413673,0.7617,3959.1,3958.4,0.18695483]
[1734026413854,0.7617,3959.1,3958.5,0.18695483]
[1734026414020,0.7617,3959.1,3958.6,0.18695483]
[1734026414222,0.7617,3959.1,3957.9,1.04480829]
[1734026414452,0.7617,3959.1,3958.0,0.18697991]
[1734026414663,0.7617,3959.1,3958.1,2.35139109]
[1734026414978,0.7617,3959.1,3958.2,1.05271487]
[1734026415268,0.7617,3959.1,3958.3,0.18697991]
[1734026415436,0.7617,3959.1,3958.4,0.18697991]
[1734026415630,0.7617,3959.1,3958.5,0.18697991]
[1734026415965,0.7617,3959.1,3958.6,0.18697991]
[1734026416171,0.7617,3959.1,3957.9,1.04480829]
[1734026416463,0.7617,3959.1,3958.0,0.50473842]
[1734026416621,0.7617,3959.1,3958.1,0.18692741]
[1734026416822,0.7617,3959.1,3958.2,2.35134266]
[1734026417025,0.7617,3959.1,3958.3,0.18692741]
[1734026417264,0.7617,3959.1,3958.4,0.18692741]
[1734026417436,0.7617,3959.1,3957.5,2.08966092]
[1734026417437,0.7611,3958.9,3957.5,1.04480829]
[1734026417658,0.7611,3958.9,3957.6,2.35199935]
[1734026417948,0.7611,3958.9,3957.7,2.35199935]
[1734026418149,0.7611,3958.9,3957.8,2.35199935]
[1734026418338,0.7611,3958.9,3957.6,1.04480829]
[1734026418339,0.7611,3958.9,3957.9,1.05298827]
[1734026418539,0.7825,3958.7,3958.0,0.18698089]
[1734026418735,0.7825,3958.7,3957.2,1.04480829]
[1734026418933,0.7825,3958.7,3957.3,0.18704007]
[1734026419252,0.7825,3958.7,3957.4,0.18704007]
[1734026419569,0.7825,3958.7,3957.5,1.05341086]
[1734026419764,3.13996457,3958.8,3957.2,1.04480829]
[1734026419765,0.65462212,3958.6,3957.6,0.18704007]
[1734026419972,0.7627,3958.5,3957.2,1.04480829]
[1734026420262,0.7627,3958.5,3957.3,3.39768387]
[1734026420471,0.7627,3958.5,3957.4,2.35287558]
[1734026420673,0.7627,3958.5,3957.5,2.35279735]
[1734026420839,0.7627,3958.5,3957.6,0.18704388]
[1734026421158,0.7627,3958.5,3957.7,1.05328872]
[1734026421361,0.7627,3958.5,3957.8,0.18704388]
[1734026421663,0.7627,3958.5,3957.9,0.18704388]
[1734026421868,0.7627,3958.5,3958.0,0.18704388]
[1734026422024,0.7627,3958.5,3958.1,0.18704388]
[1734026422225,0.7627,3958.5,3957.5,1.04480829]
[1734026422466,0.7627,3958.5,3957.6,0.18707946]
[1734026422646,0.7627,3958.5,3957.8,0.7843]
[1734026422969,0.7794,3959.4,3958.1,1.04480829]
[1734026423125,0.7794,3959.4,3958.2,0.18707946]
[1734026423323,0.7794,3959.4,3958.1,1.04480829]
[1734026423324,0.7794,3959.4,3958.3,1.05347342]
[1734026423519,0.7794,3959.4,3958.4,0.18707946]
[1734026423762,0.7794,3959.4,3958.5,0.18707946]
[1734026423967,0.7794,3959.4,3958.6,0.18707946]
[1734026424269,0.7794,3959.4,3958.7,0.18707946]
[1734026424478,0.7794,3959.4,3958.1,1.04480829]
[1734026424630,0.7794,3959.4,3958.2,0.18701597]
[1734026424963,0.7794,3959.4,3958.3,1.05298163]
[1734026425172,0.7794,3959.4,3958.4,0.18701597]
[1734026425324,0.7794,3959.4,3958.5,0.18701597]
[1734026425520,0.7794,3959.4,3958.6,0.18701597]
[1734026425779,0.7794,3959.4,3958.7,0.18701597]
[1734026426077,0.7794,3959.4,3958.1,1.04480829]
[1734026426380,0.7794,3959.4,3958.2,0.18700064]
[1734026426532,1.28033083,3959.4,3958.3,2.35169309]
[1734026426738,0.7794,3959.4,3958.4,0.18700064]
[1734026426929,0.7794,3959.4,3958.1,1.04480829]
[1734026426930,0.7794,3959.4,3958.5,0.18700064]
[1734026427140,0.7794,3959.4,3958.6,0.18700064]
[1734026427372,0.7794,3959.4,3958.7,0.18700064]
[1734026427673,0.7794,3959.4,3958.1,1.04480829]
[1734026427853,0.7794,3959.4,3958.2,0.18698211]
[1734026428080,0.7794,3959.4,3958.3,0.18698211]
[1734026428262,0.7794,3959.4,3958.4,1.05281742]
[1734026428573,0.7794,3959.4,3958.5,0.18698211]
[1734026428874,0.7794,3959.4,3958.0,1.56721244]
[1734026428875,0.7794,3959.4,3958.6,1.05280602]
[1734026429029,0.7794,3959.4,3958.7,0.18698211]
[1734026429230,0.7794,3959.4,3958.8,0.18698211]
[1734026429430,0.7794,3959.4,3958.9,0.18698211]
[1734026429770,0.7794,3959.4,3958.4,1.04480829]
[1734026429771,0.7794,3959.4,3958.3,1.04480829]
[1734026430068,0.7794,3959.4,3958.4,0.18696147]
[1734026430273,0.7794,3959.4,3958.5,2.35136337]
[1734026430478,0.7794,3959.4,3958.6,1.05272223]
[1734026430674,0.7794,3959.4,3958.7,0.18696147]
[1734026430828,0.7794,3959.4,3958.8,0.18696147]
[1734026431029,0.7794,3959.4,3958.9,0.18696147]
[1734026431259,0.7794,3959.4,3959.0,0.18696147]
[1734026431439,0.7794,3959.4,3958.3,1.04480829]
[1734026431643,0.7794,3959.4,3958.4,0.18696382]
[1734026431876,0.7794,3959.4,3958.5,2.35064958]
[1734026432063,0.7794,3959.4,3958.6,1.05245961]
[1734026432258,0.7794,3959.4,3958.3,1.04480829]
[1734026432486,0.7794,3959.4,3958.4,0.18699366]
[1734026432637,0.7794,3959.4,3958.5,1.05237751]
[1734026432829,0.7794,3959.4,3958.6,0.18699366]
[1734026433034,0.7794,3959.4,3958.7,0.18699366]
[1734026433369,0.7794,3959.4,3958.8,0.18699366]
[1734026433536,0.7794,3959.4,3958.9,0.18699366]
[1734026433732,4.05942158,3960.4,3959.0,0.18699366]
[1734026434044,8.5641219,3961.3,3959.3,1.04480829]
[1734026434045,0.7724,3960.7,3959.3,1.04480829]
[1734026434238,0.7724,3960.7,3959.5,1.04480829]
[1734026434461,0.7724,3960.7,3959.7,1.04480829]
[1734026434685,0.7724,3960.7,3959.8,1.48402022]
[1734026434862,0.7724,3960.7,3959.9,2.34881146]
[1734026435061,0.7724,3960.7,3960.0,2.34881146]
[1734026435266,0.7986,3961.2,3959.9,0.772]
[1734026435506,0.7986,3961.2,3960.0,2.34429716]
[1734026435662,0.7986,3961.2,3960.1,2.15763496]
[1734026436001,0.7986,3961.2,3960.2,2.34404321]
[1734026436202,0.7986,3961.2,3960.1,1.06402906]
[1734026436203,0.7986,3961.2,3960.3,1.04962161]
[1734026436403,0.7986,3961.2,3960.4,2.3417657]
[1734026436610,0.7986,3961.2,3960.1,0.01922077]
[1734026436611,0.7986,3961.2,3960.5,0.18651975]
[1734026436762,3.1,3961.3,3960.6,0.18651975]
[1734026436964,3.1,3961.3,3960.7,0.18651975]
[1734026437200,3.1,3961.3,3960.1,4.56721244]
[1734026437201,3.1,3961.3,3960.8,0.18651975]
[1734026437411,3.1,3961.3,3960.9,0.18651975]
[1734026437703,3.1,3961.3,3960.2,1.04480829]
[1734026437861,3.1,3961.3,3960.3,2.33919931]
[1734026438112,3.1,3961.3,3960.4,0.18603573]
[1734026438312,3.1,3961.3,3960.1,1.04480829]
[1734026438313,3.1,3961.3,3960.6,0.8166]
[1734026438556,3.1,3961.3,3960.7,0.18603573]
[1734026438861,3.1,3961.3,3960.8,0.18603573]
[1734026439066,3.1,3961.3,3960.9,0.18603573]
[1734026439226,3.1,3961.3,3960.6,0.8166]
[1734026439418,3.1,3961.3,3960.7,0.18569613]
[1734026439613,3.1,3961.3,3960.8,0.18569613]
[1734026439845,3.1,3961.3,3960.9,0.18569613]
[1734026440047,3.1,3961.3,3960.6,0.8166]
[1734026440352,3.1,3961.3,3960.7,0.18566343]
[1734026440559,3.1,3961.3,3960.8,0.95466343]
[1734026440724,1.23265353,3961.3,3960.9,0.18566343]
[1734026441054,1.23265353,3961.3,3961.0,0.18566343]
[1734026441228,1.23265353,3961.3,3961.1,0.18566343]
[1734026441422,1.23265353,3961.3,3961.2,0.18566343]
[1734026441627,1.23265353,3961.3,3960.8,0.769]
[1734026441829,1.23265353,3961.3,3960.9,0.185422]
[1734026442153,1.23265353,3961.3,3961.0,0.185422]
[1734026442317,1.23265353,3961.3,3961.1,0.185422]
[1734026442511,1.23265353,3961.3,3960.8,0.769]
[1734026442716,1.23265353,3961.3,3960.9,0.185313]
[1734026442945,1.23265353,3961.3,3960.8,0.769]
[1734026442946,1.23265353,3961.3,3961.0,0.185313]
[1734026443144,1.23265353,3961.3,3961.1,0.185313]
[1734026443343,1.23265353,3961.3,3960.8,0.769]
[1734026443652,1.23265353,3961.3,3960.9,0.18519092]
[1734026443958,1.23265353,3961.3,3961.0,0.18519092]
[1734026444160,1.23265353,3961.3,3961.1,0.18519092]
[1734026444450,1.23265353,3961.3,3960.8,0.769]
[1734026444658,1.23265353,3961.3,3960.9,0.1850901]
[1734026444869,1.23265353,3961.3,3961.0,0.9410901]
[1734026445028,26.35,3961.4,3961.2,0.756]
[1734026445445,26.35,3961.4,3961.3,0.18500004]
[1734026447678,26.35,3961.4,3961.2,0.756]
[1734026447979,26.35,3961.4,3960.6,0.7729]
[1734026448175,26.35,3961.4,3960.7,0.18484171]
[1734026448326,26.35,3961.4,3960.8,0.18484171]
[1734026448660,26.35,3961.4,3960.6,0.7729]
[1734026448872,26.35,3961.4,3960.7,0.18485015]
[1734026449081,26.35,3961.4,3960.4,1.008842]
[1734026449082,0.7858,3961.3,3960.4,1.008842]
[1734026449383,0.7858,3961.3,3960.5,0.18494805]
[1734026449570,0.7858,3961.3,3960.3,0.7821]
[1734026449775,0.7858,3961.3,3960.4,0.18497245]
[1734026449937,0.7858,3961.3,3958.9,2.08966092]
[1734026449938,0.7858,3961.2,3959.3,0.7578]
[1734026450265,0.7858,3961.2,3959.4,0.18500099]
[1734026450471,0.7858,3961.2,3959.5,0.18500099]
[1734026450774,0.7858,3961.2,3959.6,0.18500099]
[1734026451068,0.7858,3961.2,3959.7,0.18500099]
[1734026451269,0.8281,3961.1,3959.4,0.18500099]
[1734026451426,0.8281,3961.1,3959.5,0.18500099]
[1734026451627,0.8281,3961.1,3959.3,0.7578]
[1734026451628,0.8281,3961.1,3959.6,0.18500099]
[1734026451826,0.8281,3961.1,3959.7,0.18500099]
[1734026452056,0.8281,3961.1,3959.8,0.18500099]
[1734026452241,0.8281,3961.1,3959.3,0.88455566]
[1734026452242,0.8281,3961.1,3959.9,0.18500099]
[1734026452444,0.8281,3961.1,3959.3,0.88455566]
[1734026452658,0.8281,3961.1,3959.4,0.18532049]
[1734026452863,0.8156,3961.0,3959.5,0.18532049]
[1734026453086,0.8156,3961.0,3958.3,3.56721244]
[1734026453087,0.7802,3960.9,3959.6,0.18532049]
[1734026453337,0.7802,3960.8,3958.6,0.7924]
[1734026453488,2.62375659,3960.5,3958.7,0.18548738]
[1734026453689,0.7586,3960.4,3958.8,0.18548738]
[1734026453884,0.7586,3960.4,3958.9,0.18548738]
[1734026454217,0.7586,3960.4,3958.2,0.12378177]
[1734026454398,0.7586,3960.4,3958.3,0.18552597]
[1734026454598,2.88613225,3960.5,3958.2,0.12378177]
[1734026454910,0.28861323,3960.4,3958.3,0.18554318]
[1734026455115,3.28861323,3960.4,3958.4,0.18554318]
[1734026455326,3.28861323,3960.4,3957.8,0.8186]
[1734026455327,3.28861323,3960.4,3958.5,0.18554318]
[1734026455624,3.28861323,3960.4,3957.8,0.8186]
[1734026455625,3.28861323,3960.4,3958.6,0.18554318]
[1734026455832,3.28861323,3960.4,3957.8,0.8186]
[1734026455833,3.28861323,3960.4,3958.7,0.18554318]
[1734026456000,0.59123698,3960.3,3957.8,0.8186]
[1734026456323,0.59123698,3960.3,3957.9,0.18564253]
[1734026456491,0.59123698,3960.3,3958.0,0.18564253]
[1734026456699,0.59123698,3960.3,3958.1,0.18564253]
[1734026456901,0.59123698,3960.3,3958.2,0.18564253]
[1734026457107,3.28861323,3960.4,3958.3,0.18564253]
[1734026457108,0.65036068,3960.2,3958.3,0.18564253]
[1734026457333,0.65036068,3960.2,3957.8,0.9437346]
[1734026457519,0.65036068,3960.2,3957.9,0.18574033]
[1734026457720,0.8264,3960.1,3958.0,0.18574033]
[1734026457954,0.8264,3960.1,3958.1,0.18574033]
[1734026458109,0.8264,3960.1,3958.2,0.18574033]
[1734026458310,0.7659,3960.0,3958.3,0.18574033]
[1734026458542,0.7659,3960.0,3958.4,0.18574033]
[1734026458750,0.7659,3960.0,3958.5,0.18574033]
[1734026458950,0.7659,3960.0,3958.6,0.18574033]
[1734026459153,0.7659,3960.0,3958.7,0.18574033]
[1734026459360,0.98857981,3959.9,3958.8,0.18574033]
[1734026459555,0.98857981,3959.9,3957.8,0.9437346]
[1734026459758,0.7993,3959.9,3957.9,0.18581476]
[1734026460047,0.7993,3959.9,3958.0,0.18581476]
[1734026460264,0.7993,3959.9,3958.1,0.18581476]
[1734026460427,0.7993,3959.9,3958.2,0.18581476]
[1734026460661,0.7993,3959.9,3958.3,0.18581476]
[1734026460829,0.92688374,3959.9,3958.4,0.18581476]
[1734026461025,0.92688374,3959.9,3958.5,0.18581476]
[1734026461261,0.92688374,3959.9,3957.8,0.9437346]
[1734026461262,0.92688374,3959.9,3958.6,0.18581476]
[1734026461463,0.92688374,3959.9,3958.1,0.30473582]
[1734026461464,0.7993,3959.9,3958.1,0.30473582]
[1734026461607,0.7993,3959.9,3958.2,0.18584919]
[1734026461820,0.7993,3959.9,3958.3,0.18584919]
[1734026462009,0.7993,3959.9,3958.4,0.18584919]
[1734026462255,0.7993,3959.9,3957.8,0.8186]
[1734026462256,0.7993,3959.9,3958.5,0.18584919]
[1734026462463,0.7993,3959.9,3957.5,0.30473582]
[1734026462464,0.8173,3959.7,3957.5,1.13543582]
[1734026462660,0.8173,3959.7,3957.6,0.1859042]
[1734026462661,0.8118,3959.6,3957.6,0.1859042]
[1734026462825,0.8118,3959.5,3957.7,0.1859042]
[1734026463033,0.8118,3959.2,3957.0,0.8105]
[1734026463348,0.8118,3959.2,3957.1,0.18596688]
[1734026463547,2.62375659,3959.3,3957.2,0.18596688]
[1734026463548,0.8296,3959.0,3957.2,0.18596688]
[1734026463858,0.8296,3959.0,3957.3,0.18596688]
[1734026464010,0.8296,3959.0,3957.4,0.18596688]
[1734026464214,0.8296,3959.0,3956.9,0.30473582]
[1734026464215,0.8296,3959.0,3957.5,0.18596688]
[1734026464558,0.8296,3959.0,3956.9,0.30473582]
[1734026464757,0.7875,3958.8,3957.0,0.18577187]
[1734026464926,0.7875,3958.8,3957.1,0.18577187]
[1734026465114,0.95560557,3958.8,3957.2,0.18577187]
[1734026465309,0.95560557,3958.8,3957.3,0.18577187]
[1734026465514,0.95560557,3958.8,3956.3,1.26034182]
[1734026465515,1.3763,3958.7,3956.3,1.26034182]
[1734026465758,0.8263,3958.6,3956.4,0.18569608]
[1734026465965,0.8263,3958.6,3956.5,0.18569608]
[1734026466114,0.8263,3958.4,3956.6,0.18569608]
[1734026466315,0.8263,3958.4,3956.7,0.18569608]
[1734026466627,0.8263,3958.4,3956.8,0.18569608]
[1734026466959,0.8263,3958.4,3956.7,0.30473582]
[1734026466960,0.8263,3958.4,3956.9,0.18556761]
[1734026467157,0.8263,3958.4,3957.0,0.18556761]
[1734026467316,0.8263,3958.4,3956.9,0.30473582]
[1734026468178,0.96393,3958.4,3956.9,0.30473582]
[1734026468528,0.8263,3958.4,3956.9,0.30473582]
[1734026469816,0.7805,3957.5,3955.9,1.009953]
[1734026470016,0.7805,3957.5,3956.1,0.00325831]
[1734026470245,0.7805,3957.5,3956.2,0.18542151]
[1734026470653,0.7805,3957.5,3956.3,0.18542151]
[1734026470858,0.7805,3957.5,3956.3,0.03500081]
[1734026471361,0.7805,3957.5,3956.3,0.33973663]
[1734026472314,0.7805,3957.5,3956.1,3.12903981]
[1734026472597,0.7805,3957.5,3956.2,0.19839647]
[1734026472800,0.8106,3957.4,3956.2,0.01306308]
[1734026472995,0.34042566,3957.5,3956.3,0.08211275]
[1734026472996,2.62375659,3957.2,3956.3,0.08211275]
[1734026473211,0.34042566,3957.5,3955.7,0.08213109]
[1734026473212,2.62375659,3956.8,3955.7,0.08213109]
[1734026473367,0.8106,3956.7,3955.7,0.00276099]
[1734026473566,0.8106,3956.7,3955.3,0.30473582]
[1734026474514,1.15403566,3956.7,3955.3,0.30473582]
[1734026474654,0.7555,3956.6,3955.3,0.30473582]
[1734026475263,0.7555,3956.6,3954.7,0.12811258]
[1734026475264,0.7555,3956.6,3955.0,0.55]
[1734026475463,0.7555,3956.6,3954.7,0.30473582]
[1734026476793,0.7555,3956.6,3954.7,3.30473582]
[1734026477010,2.62375659,3956.4,3954.8,0.55]
[1734026477149,0.26237566,3956.3,3954.8,0.56886221]
[1734026477356,0.7848,3956.2,3954.6,0.55]
[1734026477653,0.7848,3956.2,3954.5,0.55]
[1734026477996,0.26237566,3956.3,3954.2,0.30473582]
[1734026477997,2.62375659,3955.6,3954.2,0.30473582]
[1734026478200,0.7848,3955.5,3954.0,0.26072632]
[1734026478353,0.7848,3955.5,3953.7,0.28905487]
[1734026478560,2.62375659,3955.2,3953.8,0.02160019]
[1734026478825,0.8103,3955.1,3953.8,0.59379069]
[1734026478954,0.8103,3955.1,3953.9,0.02126691]
[1734026479154,0.8103,3955.1,3954.0,0.00432685]
[1734026479363,0.8103,3955.1,3953.9,0.59379069]
[1734026479753,0.8092397,3955.1,3954.0,0.28905487]
[1734026479956,0.8092397,3955.1,3954.1,1.3462]
[1734026480297,0.8092397,3955.1,3954.3,0.55]
[1734026481071,0.8092397,3955.1,3953.6,0.26072632]
[1734026481275,0.8092397,3955.1,3953.8,3.0]
[1734026481783,0.8092397,3955.1,3953.8,3.28905487]
[1734026481988,0.8092397,3955.1,3953.9,0.28905487]
[1734026482300,0.8092397,3955.1,3954.0,0.55]
[1734026482480,0.8092397,3955.1,3954.1,0.28905487]
[1734026482660,0.8092397,3955.1,3954.2,0.55]
[1734026483654,0.8092397,3955.1,3953.9,0.55]
[1734026483906,0.8092397,3955.1,3953.8,0.55]
[1734026484124,0.8092397,3955.1,3953.8,3.83905487]
[1734026484418,0.8092397,3955.1,3953.8,0.83905487]
[1734026484713,0.8092397,3955.1,3954.0,0.55]
[1734026485285,0.8092397,3955.1,3953.6,0.55]
[1734026485494,0.8092397,3955.1,3953.8,0.55]
[1734026485806,0.8092397,3955.1,3953.8,0.83905487]
[1734026486310,0.8092397,3955.1,3953.9,1.37629069]
[1734026486610,0.8092397,3955.1,3954.0,0.55]
[1734026486753,0.8092397,3955.1,3954.0,0.83905487]
[1734026487158,0.7781,3955.4,3954.2,0.55]
[1734026487399,0.7781,3955.4,3954.5,0.55]
[1734026487567,3.23663058,3957.3,3954.5,0.55]
[1734026487762,0.7796,3957.1,3954.9,0.55]
[1734026488956,0.7796,3957.1,3955.1,3.0]